lending/lending_fUSD_20240512
["ID","MTS","AMOUNT","RATE_DAILY","PERIOD"]
[326881121,1715536250356,-500.0,0.00012328,2]
[326881122,1715536250365,-1219.53,0.00012328,2]
[326881123,1715536250379,-1219.53,0.00012328,2]
[326881124,1715536250388,-500.0,0.00012328,2]
[326881125,1715536250398,-1219.53,0.00012328,2]
[326881126,1715536250407,-500.0,0.00012328,2]
[326881127,1715536250419,-1219.53,0.00012328,2]
[326881128,1715536250429,-500.0,0.00012328,2]
[326881129,1715536250438,-1219.53,0.00012328,2]
[326881130,1715536250451,-500.0,0.00012328,2]
[326881131,1715536250461,-1219.53,0.00012328,2]
[326881132,1715536250471,-500.0,0.00012328,2]
[326881133,1715536250481,-1219.72730999,0.00012328,2]
[326881134,1715536250491,-500.0,0.00012328,2]
[326881135,1715536250500,-500.0,0.00012328,2]
[326881136,1715536250510,-500.0,0.00012328,2]
[326881137,1715536250520,-634.79099094,0.00012328,2]
[326881138,1715536250529,-500.0,0.00012328,2]
[326881139,1715536250539,-500.0,0.00012328,2]
[326881140,1715536250550,-500.0,0.00012328,2]
[326881141,1715536250561,-500.0,0.00012328,2]
[326881142,1715536250570,-500.0,0.00012328,2]
[326881143,1715536250579,-500.0,0.00012328,2]
[326881144,1715536250589,-536.60183782,0.00012328,2]
[326881145,1715536250598,-500.0,0.00012328,2]
[326881146,1715536250607,-1093.5,0.00012328,2]
[326881147,1715536250616,-500.0,0.00012328,2]
[326881148,1715536250626,-1093.5,0.00012328,2]
[326881149,1715536250635,-500.0,0.00012328,2]
[326881150,1715536250645,-1093.5,0.00012328,2]
[326881151,1715536250655,-230.5468668,0.00012328,2]
[326881152,1715536250664,-1093.5,0.00012328,2]
[326881153,1715536250674,-1093.5,0.00012328,2]
[326881154,1715536250684,-1093.5,0.00012328,2]
[326881155,1715536250693,-1093.5,0.00012328,2]
[326881156,1715536250703,-1093.5,0.00012328,2]
[326881157,1715536250712,-1093.5,0.00012328,2]
[326881158,1715536250726,-500.0,0.00012328,2]
[326881159,1715536250735,-500.0,0.00012328,2]
[326881160,1715536250745,-1093.5,0.00012328,2]
[326881161,1715536250754,-500.0,0.00012328,2]
[326881162,1715536250763,-500.0,0.00012328,2]
[326881163,1715536250772,-500.0,0.00012328,2]
[326881164,1715536250782,-500.0,0.00012328,2]
[326881165,1715536250791,-1093.5,0.00012328,2]
[326881166,1715536250800,-500.0,0.00012328,2]
[326881167,1715536250810,-500.0,0.00012328,2]
[326881168,1715536250820,-1093.5,0.00012328,2]
[326881169,1715536250829,-500.0,0.00012328,2]
[326881170,1715536250838,-500.0,0.00012328,2]
[326881171,1715536250847,-500.0,0.00012328,2]
[326881172,1715536250856,-500.0,0.00012328,2]
[326881173,1715536250865,-500.0,0.00012328,2]
[326881174,1715536250875,-500.0,0.00012328,2]
[326881175,1715536250978,-1093.5,0.00012328,2]
[326881176,1715536250988,-500.0,0.00012328,2]
[326881177,1715536250997,-500.0,0.00012328,2]
[326881178,1715536251007,-303.32981074,0.00012328,2]
[326881179,1715536251016,-500.0,0.00012328,2]
[326881180,1715536251025,-500.0,0.00012328,2]
[326881181,1715536251035,-500.0,0.00012328,2]
[326881182,1715536251044,-1093.5,0.00012328,2]
[326881183,1715536251054,-500.0,0.00012328,2]
[326881184,1715536251066,-500.0,0.00012328,2]
[326881185,1715536251075,-500.0,0.00012328,2]
[326881186,1715536251084,-500.0,0.00012328,2]
[326881187,1715536251094,-1093.5,0.00012328,2]
[326881188,1715536251103,-500.0,0.00012328,2]
[326881189,1715536251112,-500.0,0.00012328,2]
[326881190,1715536251122,-500.0,0.00012328,2]
[326881191,1715536251131,-500.0,0.00012328,2]
[326881192,1715536251141,-500.0,0.00012328,2]
[326881193,1715536251150,-1093.5,0.00012328,2]
[326881194,1715536251160,-500.0,0.00012328,2]
[326881195,1715536251170,-500.0,0.00012328,2]
[326881196,1715536251180,-500.0,0.00012328,2]
[326881197,1715536251190,-500.0,0.00012328,2]
[326881198,1715536251199,-1093.5,0.00012328,2]
[326881199,1715536251209,-500.0,0.00012328,2]
[326881200,1715536251219,-500.0,0.00012328,2]
[326881201,1715536251230,-536.43765932,0.00012328,2]
[326881202,1715536251240,-500.0,0.00012328,2]
[326881203,1715536251250,-1093.5,0.00012328,2]
[326881204,1715536251260,-500.0,0.00012328,2]
[326881205,1715536251269,-486.27711405,0.00012328,2]
[326881206,1715536251279,-500.0,0.00012328,2]
[326881207,1715536251288,-1093.5,0.00012328,2]
[326881208,1715536251297,-500.0,0.00012328,2]
[326881209,1715536251308,-500.0,0.00012328,2]
[326881210,1715536251319,-500.0,0.00012328,2]
[326881211,1715536251327,-500.0,0.00012328,2]
[326881212,1715536251336,-1093.5,0.00012328,2]
[326881213,1715536251345,-500.0,0.00012328,2]
[326881214,1715536251354,-1093.5,0.00012328,2]
[326881215,1715536251363,-500.0,0.00012328,2]
[326881216,1715536251374,-500.0,0.00012328,2]
[326881217,1715536251384,-500.0,0.00012328,2]
[326881218,1715536251393,-1093.5,0.00012328,2]
[326881219,1715536251402,-500.0,0.00012328,2]
[326881220,1715536251411,-500.0,0.00012328,2]
[326881221,1715536251421,-500.0,0.00012328,2]
[326881222,1715536251430,-1093.5,0.00012328,2]
[326881223,1715536251439,-500.0,0.00012328,2]
[326881224,1715536251449,-500.0,0.00012328,2]
[326881225,1715536251460,-525.79174631,0.00012328,2]
[326881226,1715536251469,-1093.59885678,0.00012328,2]
[326881227,1715536251478,-500.0,0.00012328,2]
[326881228,1715536251487,-500.0,0.00012328,2]
[326881229,1715536251497,-500.0,0.00012328,2]
[326881230,1715536251506,-571.64850902,0.00012328,2]
[326881231,1715536251515,-500.0,0.00012328,2]
[326881232,1715536251525,-630.77,0.00012328,2]
[326881233,1715536251534,-500.0,0.00012328,2]
[326881234,1715536251544,-500.0,0.00012328,2]
[326881235,1715536251554,-630.77,0.00012328,2]
[326881236,1715536251566,-500.0,0.00012328,2]
[326881237,1715536251576,-500.0,0.00012328,2]
[326881238,1715536251585,-630.77,0.00012328,2]
[326881239,1715536251594,-500.0,0.00012328,2]
[326881240,1715536251603,-500.0,0.00012328,2]
[326881241,1715536251612,-630.77,0.00012328,2]
[326881242,1715536251621,-500.0,0.00012328,2]
[326881243,1715536251630,-500.0,0.00012328,2]
[326881244,1715536251639,-630.77,0.00012328,2]
[326881245,1715536251648,-500.0,0.00012328,2]
[326881246,1715536251658,-630.77,0.00012328,2]
[326881247,1715536251667,-500.0,0.00012328,2]
[326881248,1715536251676,-500.0,0.00012328,2]
[326881249,1715536251685,-630.77,0.00012328,2]
[326881250,1715536251694,-500.0,0.00012328,2]
[326881251,1715536251703,-500.0,0.00012328,2]
[326881252,1715536251711,-500.0,0.00012328,2]
[326881253,1715536251722,-584.69,0.00012328,2]
[326881254,1715536251731,-755.22,0.00012328,2]
[326881255,1715536251740,-500.0,0.00012328,2]
[326881256,1715536251749,-630.77,0.00012328,2]
[326881257,1715536251758,-500.0,0.00012328,2]
[326881258,1715536251767,-584.69,0.00012328,2]
[326881259,1715536251776,-755.22,0.00012328,2]
[326881260,1715536251786,-500.0,0.00012328,2]
[326881261,1715536251795,-500.0,0.00012328,2]
[326881262,1715536251804,-448.37334811,0.00012328,2]
[326881263,1715536251817,-584.69,0.00012328,2]
[326881264,1715536251827,-630.77,0.00012328,2]
[326881265,1715536251836,-755.22,0.00012328,2]
[326881266,1715536251844,-500.0,0.00012328,2]
[326881267,1715536251854,-500.0,0.00012328,2]
[326881268,1715536251863,-584.69,0.00012328,2]
[326881269,1715536251872,-630.77,0.00012328,2]
[326881270,1715536251880,-755.22,0.00012328,2]
[326881271,1715536251889,-500.0,0.00012328,2]
[326881272,1715536251898,-500.0,0.00012328,2]
[326881273,1715536251907,-584.69,0.00012328,2]
[326881274,1715536251916,-630.77,0.00012328,2]
[326881275,1715536251925,-755.22,0.00012328,2]
[326881276,1715536251935,-594.34014148,0.00012328,2]
[326881277,1715536251943,-500.0,0.00012328,2]
[326881278,1715536251952,-584.69,0.00012328,2]
[326881279,1715536251961,-630.77,0.00012328,2]
[326881280,1715536251970,-755.22,0.00012328,2]
[326881281,1715536251979,-500.0,0.00012328,2]
[326881282,1715536251988,-630.77,0.00012328,2]
[326881283,1715536251997,-584.69,0.00012328,2]
[326881284,1715536252006,-584.69,0.00012328,2]
[326881285,1715536252015,-755.22,0.00012328,2]
[326881286,1715536252023,-500.0,0.00012328,2]
[326881287,1715536252033,-630.77,0.00012328,2]
[326881288,1715536252041,-584.69,0.00012328,2]
[326881289,1715536252051,-755.22,0.00012328,2]
[326881290,1715536252062,-500.0,0.00012328,2]
[326881291,1715536252071,-630.77,0.00012328,2]
[326881292,1715536252080,-584.69,0.00012328,2]
[326881293,1715536252089,-755.22,0.00012328,2]
[326881294,1715536252098,-500.0,0.00012328,2]
[326881295,1715536252107,-630.77,0.00012328,2]
[326881296,1715536252116,-584.69,0.00012328,2]
[326881297,1715536252125,-755.22,0.00012328,2]
[326881298,1715536252134,-500.0,0.00012328,2]
[326881299,1715536252143,-630.77,0.00012328,2]
[326881300,1715536252152,-584.69,0.00012328,2]
[326881301,1715536252161,-755.22,0.00012328,2]
[326881302,1715536252170,-500.0,0.00012328,2]
[326881303,1715536252180,-584.69,0.00012328,2]
[326881304,1715536252189,-630.77,0.00012328,2]
[326881305,1715536252198,-584.69,0.00012328,2]
[326881306,1715536252207,-500.0,0.00012328,2]
[326881307,1715536252216,-755.22,0.00012328,2]
[326881308,1715536252225,-630.77,0.00012328,2]
[326881309,1715536252234,-500.0,0.00012328,2]
[326881310,1715536252243,-584.69,0.00012328,2]
[326881311,1715536252252,-630.77,0.00012328,2]
[326881312,1715536252261,-512.4285735,0.00012328,2]
[326881313,1715536252270,-584.69,0.00012328,2]
[326881314,1715536252279,-630.77,0.00012328,2]
[326881315,1715536252289,-766.02,0.00012328,2]
[326881316,1715536252298,-630.77,0.00012328,2]
[326881317,1715536252307,-755.22,0.00012328,2]
[326881318,1715536252316,-630.77,0.00012328,2]
[326881319,1715536252325,-766.02,0.00012328,2]
[326881320,1715536252335,-584.69,0.00012328,2]
[326881321,1715536252344,-755.22,0.00012328,2]
[326881322,1715536252353,-630.81308165,0.00012328,2]
[326881323,1715536252362,-766.02,0.00012328,2]
[326881324,1715536252374,-584.69,0.00012328,2]
[326881325,1715536252385,-755.22,0.00012328,2]
[326881326,1715536252394,-584.69,0.00012328,2]
[326881327,1715536252403,-755.22,0.00012328,2]
[326881328,1715536252412,-584.69,0.00012328,2]
[326881329,1715536252422,-766.02,0.00012328,2]
[326881330,1715536252431,-584.69,0.00012328,2]
[326881331,1715536252440,-766.02,0.00012328,2]
[326881332,1715536252449,-507.00161532,0.00012328,2]
[326881333,1715536252458,-755.22,0.00012328,2]
[326881334,1715536252468,-584.69,0.00012328,2]
[326881335,1715536252477,-766.02,0.00012328,2]
[326881336,1715536252486,-500.0,0.00012328,2]
[326881337,1715536252495,-755.22,0.00012328,2]
[326881338,1715536252504,-766.02,0.00012328,2]
[326881339,1715536252513,-584.69,0.00012328,2]
[326881340,1715536252522,-755.22,0.00012328,2]
[326881341,1715536252531,-500.0,0.00012328,2]
[326881342,1715536252540,-766.02,0.00012328,2]
[326881343,1715536252550,-584.73462677,0.00012328,2]
[326881344,1715536252560,-755.22,0.00012328,2]
[326881345,1715536252569,-500.0,0.00012328,2]
[326881346,1715536252578,-766.02,0.00012328,2]
[326881347,1715536252587,-766.02,0.00012328,2]
[326881348,1715536252596,-755.22,0.00012328,2]
[326881349,1715536252605,-500.0,0.00012328,2]
[326881350,1715536252614,-258.86940284,0.00012328,2]
[326881351,1715536253999,-507.15059716,0.00012328,2]
[326881352,1715536254009,-179.73352211,0.00012328,2]
[326881353,1715536254030,-385.76005107,0.00012328,2]
[326881354,1715536255205,-319.31715993,0.00012322,2]
[326881355,1715536255216,-373.0946096,0.00012322,2]
[326881356,1715536255235,-2230.08496887,0.00012322,2]
[326881357,1715536255245,-189.72642682,0.00012328,2]
[326881358,1715536255254,-500.0,0.00012328,2]
[326881359,1715536255263,-766.02,0.00012328,2]
[326881360,1715536255272,-755.22,0.00012328,2]
[326881361,1715536255282,-500.0,0.00012328,2]
[326881362,1715536255291,-766.02,0.00012328,2]
[326881363,1715536255300,-755.29715017,0.00012328,2]
[326881364,1715536255311,-500.0,0.00012328,2]
[326881365,1715536255320,-500.0,0.00012328,2]
[326881366,1715536255329,-766.02,0.00012328,2]
[326881367,1715536255338,-500.0,0.00012328,2]
[326881368,1715536255348,-766.02,0.00012328,2]
[326881369,1715536255357,-500.0,0.00012328,2]
[326881370,1715536255367,-766.02,0.00012328,2]
[326881371,1715536255380,-500.0,0.00012328,2]
[326881372,1715536255389,-766.02,0.00012328,2]
[326881373,1715536255399,-500.0,0.00012328,2]
[326881374,1715536255408,-766.02,0.00012328,2]
[326881375,1715536255418,-766.02,0.00012328,2]
[326881376,1715536255428,-500.0,0.00012328,2]
[326881377,1715536255437,-500.0,0.00012328,2]
[326881378,1715536255446,-500.0,0.00012328,2]
[326881379,1715536255455,-700.21145484,0.00012328,2]
[326881380,1715536255509,-65.80854516,0.00012328,2]
[326881381,1715536255518,-766.02,0.00012328,2]
[326881382,1715536255528,-500.0,0.00012328,2]
[326881383,1715536255539,-500.0,0.00012328,2]
[326881384,1715536255548,-766.02,0.00012328,2]
[326881385,1715536255558,-527.11033985,0.00012328,2]
[326881386,1715536255567,-500.0,0.00012328,2]
[326881387,1715536255577,-766.02,0.00012328,2]
[326881388,1715536255586,-500.0,0.00012328,2]
[326881389,1715536255596,-766.11743569,0.00012328,2]
[326881390,1715536255605,-584.56794027,0.00012328,2]
[326881391,1715536255615,-500.0,0.00012328,2]
[326881392,1715536255624,-526.01724246,0.00012328,2]
[326881393,1715536255634,-500.0,0.00012328,2]
[326881394,1715536255643,-500.0,0.00012328,2]
[326881395,1715536255653,-691.9,0.00012328,2]
[326881396,1715536255662,-500.0,0.00012328,2]
[326881397,1715536255671,-691.9,0.00012328,2]
[326881398,1715536255681,-500.0,0.00012328,2]
[326881399,1715536255691,-500.0,0.00012328,2]
[326881400,1715536255700,-1439.61,0.00012328,2]
[326881401,1715536255710,-691.9,0.00012328,2]
[326881402,1715536255719,-500.0,0.00012328,2]
[326881403,1715536255729,-691.9,0.00012328,2]
[326881404,1715536255738,-691.9,0.00012328,2]
[326881405,1715536255747,-1439.61,0.00012328,2]
[326881406,1715536255757,-166.077336,0.00012328,2]
[326881407,1715536255766,-1439.61,0.00012328,2]
[326881408,1715536255775,-691.9,0.00012328,2]
[326881409,1715536255784,-1439.61,0.00012328,2]
[326881410,1715536255794,-691.9,0.00012328,2]
[326881411,1715536255803,-1439.61,0.00012328,2]
[326881412,1715536255812,-691.9,0.00012328,2]
[326881413,1715536255822,-520.9988239,0.00012328,2]
[326881414,1715536255831,-1439.61,0.00012328,2]
[326881415,1715536255840,-691.9,0.00012328,2]
[326881416,1715536255849,-691.9,0.00012328,2]
[326881417,1715536255858,-1439.61,0.00012328,2]
[326881418,1715536255868,-691.9,0.00012328,2]
[326881419,1715536255877,-1439.61,0.00012328,2]
[326881420,1715536255886,-691.9,0.00012328,2]
[326881421,1715536255896,-230.21381186,0.00012328,2]
[326881422,1715536255905,-1439.61,0.00012328,2]
[326881423,1715536255914,-500.0,0.00012328,2]
[326881424,1715536255923,-691.9,0.00012328,2]
[326881425,1715536255932,-213.83852481,0.00012328,2]
[326881426,1715536255999,-708.13147519,0.00012328,2]
[326881427,1715536256009,-500.0,0.00012328,2]
[326881428,1715536256018,-921.97,0.00012328,2]
[326881429,1715536256028,-691.9,0.00012328,2]
[326881430,1715536256037,-500.0,0.00012328,2]
[326881431,1715536256047,-1439.61,0.00012328,2]
[326881432,1715536256056,-921.97,0.00012328,2]
[326881433,1715536256066,-691.9,0.00012328,2]
[326881434,1715536256075,-500.0,0.00012328,2]
[326881435,1715536256085,-1439.61,0.00012328,2]
[326881436,1715536256094,-691.9,0.00012328,2]
[326881437,1715536256104,-921.97,0.00012328,2]
[326881438,1715536256113,-500.0,0.00012328,2]
[326881439,1715536256122,-34.79171391,0.00012328,2]
[326881441,1715536288365,278.47295826,9.862e-05,2]
[326881443,1715536305693,2319.95306577,9.246e-05,2]
[326881457,1715536719195,200.969999,0.00021975,90]
[326881477,1715537304043,-155.0,0.00010958,2]
[326881488,1715537372399,969.24813695,0.00010958,2]
[326881489,1715537385929,969.24813695,0.00010958,2]
[326881491,1715537392552,1906.5037261,0.00010958,2]
[326881492,1715537392574,4000.0,0.00010958,2]
[326881493,1715537392595,4000.0,0.00010958,2]
[326881494,1715537392618,4000.0,0.00010958,2]
[326881495,1715537392641,2843.4962739,0.00010958,2]
[326881498,1715537411933,969.24813695,0.00010958,2]
[326881544,1715537433938,187.25558915,0.00010958,2]
[326881545,1715537433961,781.9925478,0.00010958,2]
[326881547,1715537438436,-423.97448499,0.00010959,2]
[326881548,1715537438449,-217.34551501,0.00010959,2]
[326881549,1715537438459,-250.0,0.00011436,2]
[326881550,1715537438468,-862.5,0.00011452,2]
[326881551,1715537438478,-815.68,0.00011457,2]
[326881552,1715537438488,-151.24,0.00011457,2]
[326881553,1715537438497,-184.32,0.00011507,2]
[326881554,1715537438507,-173.48,0.00011563,2]
[326881555,1715537438516,-611.71693686,0.00012107,2]
[326881556,1715537438525,-1630.83255,0.000122,2]
[326881557,1715537438535,-832.30458365,0.0001221,2]
[326881558,1715537438545,-4957.07715999,0.00012228,2]
[326881559,1715537438554,-197.23787276,0.00012228,2]
[326881560,1715537438564,-291.642,0.00012247,2]
[326881561,1715537438574,-5911.0,0.00012247,2]
[326881562,1715537438584,-5749.0,0.00012247,2]
[326881563,1715537438593,-1463.0,0.00012247,2]
[326881564,1715537438603,-37831.0,0.00012247,2]
[326881565,1715537438612,-1060.649,0.00012247,2]
[326881566,1715537438621,-153.09,0.00012318,2]
[326881567,1715537438631,-11168.2198116,0.00012322,2]
[326881568,1715537438640,-951.0708348,0.00012322,2]
[326881569,1715537438650,-385.5037532,0.00012322,2]
[326881570,1715537438659,-2369.5027927,0.00012322,2]
[326881571,1715537438669,-12047.4542913,0.00012322,2]
[326881572,1715537438678,-327.17356754,0.00012326,2]
[326881573,1715537438688,-265.46357852,0.00012326,2]
[326881574,1715537438697,-362.74560227,0.00012326,2]
[326881575,1715537438707,-1034.05079332,0.00012326,2]
[326881576,1715537438716,-500.0,0.00012326,2]
[326881577,1715537438725,-2580.78078462,0.00012326,2]
[326881578,1715537438735,-156.68704297,0.00012326,2]
[326881579,1715537438746,-192.92771027,0.00012327,2]
[326881580,1715537438757,-206.51506089,0.00012327,2]
[326881581,1715537438766,-585.87881579,0.00012327,2]
[326881583,1715537438775,-98044.34347159,0.00012328,2]
[326881651,1715537440450,-971.0,0.00012247,2]
[326881652,1715537440460,-246416.84588778,0.00012328,2]
[326881653,1715537440471,-590.135,0.00012328,2]
[326881654,1715537440482,-291.44554907,0.00012328,2]
[326881655,1715537440825,-312.18071917,0.00012328,2]
[326881656,1715537440839,-550.0,0.00012328,2]
[326881657,1715537440853,-37129.32202531,0.00012328,2]
[326881677,1715537443434,-533.34082628,0.00012328,2]
[326881678,1715537443447,-15034.33035745,0.00012328,2]
[326881679,1715537443539,-400.70588266,0.00012328,2]
[326881680,1715537443550,-1308.00000413,0.00012328,2]
[326881681,1715537443562,-1133.20005046,0.00012328,2]
[326881682,1715537443646,-793.80189035,0.00012328,2]
[326881683,1715537443842,-5770.87847284,0.00012328,2]
[326881684,1715537443855,-6042.31596001,0.00012328,2]
[326881692,1715537446278,-429.18131728,0.00012328,2]
[326881701,1715537446383,-1446.17085845,0.00012328,2]
[326881702,1715537446395,-3264.2630295,0.00012328,2]
[326881703,1715537446406,-1649.32414159,0.00012328,2]
[326881704,1715537446417,-4423.89717805,0.00012328,2]
[326881709,1715537451967,969.24813695,0.00010958,2]
[326881711,1715537467560,2248.75931525,0.00010958,2]
[326881712,1715537467586,4000.0,0.00010958,2]
[326881713,1715537467610,4000.0,0.00010958,2]
[326881714,1715537467632,4000.0,0.00010958,2]
[326881715,1715537467653,4000.0,0.00010958,2]
[326881716,1715537467675,4000.0,0.00010958,2]
[326881717,1715537467696,4000.0,0.00010958,2]
[326881718,1715537467717,4000.0,0.00010958,2]
[326881719,1715537467740,4000.0,0.00010958,2]
[326881720,1715537467763,4000.0,0.00010958,2]
[326881745,1715538121752,170.45,8.51e-05,2]
[326881747,1715538168575,969.24813695,8.51e-05,2]
[326881748,1715538179835,155.0,8.51e-05,2]
[326881749,1715538184132,65778.20420855,8.51e-05,2]
[326881750,1715538184161,71731.68416937,8.51e-05,2]
[326881751,1715538184832,969.24813695,8.51e-05,2]
[326881752,1715538185328,155.0,8.51e-05,2]
[326881753,1715538187450,400.01138738,8.51e-05,2]
[326881755,1715538195876,231.81452124,8.51e-05,2]
[326881756,1715538200509,291.923666,8.51e-05,2]
[326881757,1715538200978,155.3848474,8.51e-05,2]
[326881758,1715538207386,442.09850015,8.51e-05,2]
[326881760,1715538253014,19479.49135056,8.509e-05,2]
[326881761,1715538263367,183.09,8.288e-05,2]
[326881767,1715538382489,704.62,0.00010013,2]
[326881769,1715538445618,180.05314935,0.00010013,2]
[326881770,1715538467755,160.49683186,0.00010013,2]
[326881771,1715538473209,168.83467771,0.00010015,2]
[326881775,1715538538671,252.0603664,0.00010008,2]
[326881776,1715538544775,155.0,0.00010099,2]
[326881777,1715538548220,1379.74444204,0.00010099,2]
[326881839,1715538561677,179.9588821,0.00010015,2]
[326881847,1715538567017,-314.41,0.000101,2]
[326881848,1715538567038,-250.0,0.000101,2]
[326881850,1715538570211,377.72952639,0.00010099,2]
[326881857,1715538632795,-1206.14494,0.00010101,2]
[326881858,1715538632844,-1468.20106656,0.00010101,2]
[326881859,1715538632856,-384.2222655,0.00010101,2]
[326881860,1715538632865,-218.3797345,0.00010102,2]
[326881866,1715538632924,-318.80410899,0.00010102,2]
[326881867,1715538632934,-155.0,0.00010103,2]
[326881868,1715538632943,-200.77628892,0.00010104,2]
[326881869,1715538632952,-488.45547559,0.00010104,2]
[326881870,1715538632961,-150.0,0.00010104,2]
[326881871,1715538632970,-788.94409382,0.00010105,2]
[326881872,1715538632980,-77.66966876,0.00010105,2]
[326881879,1715538637145,155.0,0.000101,2]
[326881900,1715538639102,-159.43252648,0.00010105,2]
[326881901,1715538639112,-7510.61458823,0.00010105,2]
[326881902,1715538639121,-162.46980569,0.00010105,2]
[326881903,1715538639132,-642.95246665,0.00010106,2]
[326881904,1715538639142,-250.0,0.00010117,2]
[326881905,1715538639155,-1089.73,0.00010142,2]
[326881906,1715538639164,-2423.17,0.00010156,2]
[326881907,1715538639174,-413.01,0.00010325,2]
[326881908,1715538639184,-413.01,0.00010327,2]
[326881909,1715538639195,-413.01,0.0001033,2]
[326881910,1715538639205,-550.19,0.0001033,2]
[326881911,1715538639215,-413.01,0.00010333,2]
[326881912,1715538639225,-413.01,0.00010336,2]
[326881913,1715538639237,-413.01,0.00010338,2]
[326881914,1715538639248,-413.01,0.00010341,2]
[326881915,1715538639258,-413.01,0.00010344,2]
[326881916,1715538639268,-413.01,0.00010346,2]
[326881917,1715538639279,-413.01,0.00010349,2]
[326881918,1715538639289,-50.31971958,0.00010352,2]
[326881919,1715538639301,-362.69028042,0.00010352,2]
[326881920,1715538639311,-413.01,0.00010355,2]
[326881921,1715538639320,-413.01,0.00010357,2]
[326881922,1715538639330,-413.01,0.0001036,2]
[326881923,1715538639339,-413.01,0.00010363,2]
[326881924,1715538639349,-413.01,0.00010365,2]
[326881925,1715538639358,-413.01,0.00010368,2]
[326881926,1715538639368,-413.01,0.00010371,2]
[326881927,1715538639378,-413.01,0.00010374,2]
[326881928,1715538639388,-413.01,0.00010376,2]
[326881929,1715538639398,-1377.09,0.00010456,2]
[326881930,1715538639408,-154.87,0.00010472,2]
[326881931,1715538639418,-10248.72400662,0.00010533,2]
[326881932,1715538639428,-164.65,0.00010562,2]
[326881933,1715538639438,-652.55,0.00010638,2]
[326881934,1715538639447,-200.0,0.00010643,2]
[326881935,1715538639457,-154.87,0.00010744,2]
[326881936,1715538639467,-545.2041,0.00010758,2]
[326881937,1715538639476,-217.34,0.00010959,2]
[326881938,1715538639486,-250.5802228,0.00010978,2]
[326881939,1715538639496,-275.45217304,0.00011,2]
[326881940,1715538639505,-154.87,0.00011017,2]
[326881941,1715538639515,-162.36,0.00011101,2]
[326881942,1715538639525,-347.45,0.00011373,2]
[326881943,1715538639534,-165.31,0.00011391,2]
[326881944,1715538639545,-1379.74444204,0.00011967,2]
[326881945,1715538639555,-652.55,0.00011968,2]
[326881946,1715538639564,-2846.8771,0.000121,2]
[326881947,1715538639574,-3961.86574857,0.0001211,2]
[326881948,1715538639584,-3961.86574849,0.00012121,2]
[326881949,1715538639594,-3961.86574849,0.00012131,2]
[326881950,1715538639603,-3961.86574849,0.00012142,2]
[326881951,1715538639613,-11859.3616401,0.0001215,2]
[326881952,1715538639622,-3961.86574849,0.00012153,2]
[326881953,1715538639632,-3961.86574849,0.00012164,2]
[326881954,1715538639642,-800.0,0.00012164,2]
[326881955,1715538639652,-3961.86574849,0.00012174,2]
[326881956,1715538639662,-1561.86172371,0.0001218,2]
[326881957,1715538639671,-3961.86574849,0.00012185,2]
[326881958,1715538639681,-696.99937057,0.00012187,2]
[326881959,1715538639691,-247.75883199,0.0001219,2]
[326881960,1715538639701,-3961.86574849,0.00012196,2]
[326881961,1715538639710,-327.17356754,0.00012198,2]
[326881962,1715538639720,-500.0,0.00012198,2]